[Event "FIDE WYCC Open U14 2023"]
[Site "Montesilvano"]
[Date "2023.11.22"]
[Round "9.5"]
[White "Dotzer, Lukas"]
[Black "Mamedov, Edgar"]
[Result "0-1"]
[ECO "B34"]
[WhiteElo "2339"]
[BlackElo "2234"]
[Annotator "RC"]
[PlyCount "130"]
[EventDate "2023.11.13"]
[EventType "swiss"]
[EventCountry "ITA"]
[SourceTitle "playchess.com"]
[Source "ChessBase"]
[SourceQuality "1"]
[TimeControl "40/5400+30:1800+30"]

1. e4 {[%emt 0:00:02]} c5 {[%emt 0:00:14]} 2. Nf3 {[%emt 0:00:07]} Nc6 {[%emt 0:00:16]} 3. d4 {[%emt 0:00:09]} cxd4 {[%emt 0:00:17]} 4. Nxd4 {[%emt 0:00:09]} Nf6 {[%emt 0:00:12]} 5. Nc3 {[%emt 0:00:12]} e5 {[%emt 0:00:17]} 6. Ndb5 {[%emt 0:00:07]} d6 {[%emt 0:00:13]} 7. Nd5 {[%emt 0:00:48]} Nxd5 {[%emt 0:00:11]} 8. exd5 {[%emt 0:00:08]} Nb8 {[%emt 0:00:21]} 9. a4 {[%emt 0:00:18]} Be7 {[%emt 0:00:47]} 10. Bd2 {[%emt 0:00:30]} Nd7 {[%emt 0:01:39]} 11. a5 {[%emt 0:03:53]} Nf6 {[%emt 0:02:07]} 12. Be3 {[%emt 0:03:06]} O-O {[%emt 0:08:00]} 13. Bxa7 {[%emt 0:05:32]} Nd7 {[%emt 0:21:25]} 14. Be2 {[%emt 0:12:30]} f5 {[%emt 0:01:49]} 15. O-O {[%emt 0:07:11]} e4 {[%emt 0:00:28]} 16. f4 {[%emt 0:08:32]} exf3 {[%emt 0:04:26]} 17. Bxf3 {[%emt 0:02:56]} Bf6 {[%emt 0:01:06]} 18. Bd4 {[%emt 0:15:49]} Rxa5 {[%emt 0:18:31]} 19. Rxa5 {[%emt 0:00:58]} Qxa5 {[%emt 0:00:08]} 20. Nxd6 {[%emt 0:03:55]} Ne5 {[%emt 0:03:56]} 21. Kh1 {[%emt 0:10:09]} Nxf3 {[%emt 0:06:26]} 22. Bxf6 {[%emt 0:02:29]} Rxf6 {[%emt 0:09:54]} 23. Nxc8 {[%emt 0:00:32]} Ng5 {[%emt 0:12:03]} 24. Ne7+ {[%emt 0:08:01]} Kf8 {[%emt 0:00:07]} 25. Nxf5 {[%emt 0:01:26]} Qb5 {[%emt 0:02:06]} 26. Qa1 {[%emt 0:06:29]} Ne4 {[%emt 0:02:17]} 27. c4 {[%emt 0:01:02]} Qb4 {[%emt 0:02:23]} 28. Qa8+ {[%emt 0:00:47]} Kf7 {[%emt 0:00:08]} 29. Qh8 {[%emt 0:02:32]} Nf2+ {[%emt 0:00:25]} 30. Kg1 {[%emt 0:00:31]} Rxf5 {[%emt 0:00:12]} 31. Qd8 {[%emt 0:04:27]} Qc5 {[%emt 0:01:26]} 32. Qd7+ {[%emt 0:00:27]} Kg6 {[%emt 0:00:11]} 33. Qe8+ {[%emt 0:00:34]} Kh6 {[%emt 0:00:21]} 34. Qe6+ {[%emt 0:00:26]} Rf6 {[%emt 0:00:10]} 35. Qxf6+ {[%emt 0:00:28]} gxf6 {[%emt 0:00:05]} 36. Rxf2 {[%emt 0:00:06]} Kg6 {[%emt 0:01:08]} 37. b3 {[%emt 0:00:26]} Qb6 {[%emt 0:00:22]} 38. g3 {[%emt 0:01:02]} Qxb3 {[%emt 0:00:31]} 39. Rf4 {[%emt 0:00:21]} b5 {[%emt 0:02:04]} 40. cxb5 {[%emt 0:00:00]} Qxd5 {[%emt 0:00:00]} 41. b6 {[%emt 0:06:36]} Qc5+ {[%emt 0:00:18]} 42. Kg2 {[%emt 0:00:59]} Qc6+ {[%emt 0:00:20]} 43. Kg1 {[%emt 0:01:44]} Qxb6+ {[%emt 0:00:05]} 44. Kg2 {[%emt 0:00:08]} h5 {[%emt 0:01:45]} 45. h4 {[%emt 0:19:03]} Qe3 {[%emt 0:00:16]} 46. Rf3 {[%emt 0:00:56]} Qe2+ {[%emt 0:00:13]} 47. Rf2 {[%emt 0:00:07]} Qe4+ {[%emt 0:00:05]} 48. Rf3 {[%emt 0:00:26]} f5 {[%emt 0:00:56]} 49. Kf2 {[%emt 0:00:08]} Kf6 {[%emt 0:00:07]} 50. Rf4 {[%emt 0:00:34]} Qc2+ {[%emt 0:00:05]} 51. Kg1 {[%emt 0:00:48]} Ke5 {[%emt 0:00:53]} 52. Rf2 {[%emt 0:01:12]} Qd1+ {[%emt 0:00:05]} 53. Kg2 {[%emt 0:01:12]} Ke4 {[%emt 0:00:10]} 54. Rf4+ {[%emt 0:00:33]} Ke3 {[%emt 0:00:08]} 55. Rf2 {[%emt 0:00:30]} Qd5+ {[%emt 0:00:52]} 56. Kg1 {[%emt 0:00:11]} Qf3 {[%emt 0:00:11]} 57. Rg2 {[%emt 0:01:00]} Qg4 {[%emt 0:01:26]} 58. Kh2 {[%emt 0:01:31]} Kf3 {[%emt 0:01:17]} 59. Rg1 {[%emt 0:00:33]} Qd4 {[%emt 0:00:04]} 60. Rf1+ {[%emt 0:01:22]} Qf2+ {[%emt 0:00:14]} 61. Rxf2+ {[%emt 0:00:07]} Kxf2 {[%emt 0:00:11]} 62. Kh3 {[%emt 0:00:10]} Kg1 {[%emt 0:00:07]} 63. g4 {[%emt 0:00:04]} fxg4+ {[%emt 0:00:07]} 64. Kg3 {[%emt 0:00:07]} Kh1 {[%emt 0:00:09]} 65. Kf4 {[%emt 0:00:07]} Kh2 {[%emt 0:00:07]} 0-1

[Event "FIDE WYCC Open U14 2023"]
[Site "Montesilvano"]
[Date "2023.11.22"]
[Round "9.6"]
[White "Tabuenca Mendataurigoitia, Daniel"]
[Black "Haug, Havard"]
[Result "0-1"]
[ECO "B12"]
[WhiteElo "2383"]
[BlackElo "2223"]
[Annotator "RC"]
[PlyCount "154"]
[EventDate "2023.11.13"]
[EventType "swiss"]
[EventCountry "ITA"]
[SourceTitle "playchess.com"]
[Source "ChessBase"]
[SourceQuality "1"]
[TimeControl "40/5400+30:1800+30"]

1. e4 {[%emt 0:00:02]} c6 {[%emt 0:00:04]} 2. d4 {[%emt 0:00:18]} d5 {[%emt 0:00:06]} 3. e5 {[%emt 0:00:06]} c5 {[%emt 0:00:09]} 4. Nf3 {[%emt 0:00:09]} Bg4 {[%emt 0:00:07]} 5. dxc5 {[%emt 0:00:11]} Nc6 {[%emt 0:00:29]} 6. c3 {[%emt 0:00:12]} e6 {[%emt 0:00:28]} 7. Be3 {[%emt 0:00:12]} a6 {[%emt 0:00:48]} 8. Nbd2 {[%emt 0:04:58]} Nxe5 {[%emt 0:02:46]} 9. Be2 {[%emt 0:01:26]} Nc6 {[%emt 0:06:23]} 10. h3 {[%emt 0:03:11]} Bh5 {[%emt 0:06:27]} 11. O-O {[%emt 0:03:16]} Nf6 {[%emt 0:01:04]} 12. b4 {[%emt 0:02:37]} Be7 {[%emt 0:02:03]} 13. Qb3 {[%emt 0:04:57]} O-O {[%emt 0:02:47]} 14. Rfe1 {[%emt 0:05:38]} Qc7 {[%emt 0:05:28]} 15. Rad1 {[%emt 0:18:52]} Rad8 {[%emt 0:06:25]} 16. Bg5 {[%emt 0:16:43]} Bg6 {[%emt 0:05:14]} 17. a3 {[%emt 0:02:19]} h6 {[%emt 0:05:15]} 18. Bxf6 {[%emt 0:01:58]} Bxf6 {[%emt 0:02:21]} 19. c4 {[%emt 0:00:21]} Ne7 {[%emt 0:08:28]} 20. Bd3 {[%emt 0:06:14]} dxc4 {[%emt 0:06:48]} 21. Nxc4 {[%emt 0:02:02]} Bxd3 {[%emt 0:00:44]} 22. Rxd3 {[%emt 0:00:06]} Rxd3 {[%emt 0:00:05]} 23. Qxd3 {[%emt 0:00:01]} Rd8 {[%emt 0:00:13]} 24. Qe2 {[%emt 0:01:58]} Nd5 {[%emt 0:01:50]} 25. g3 {[%emt 0:02:03]} g6 {[%emt 0:04:34]} 26. Nfd2 {[%emt 0:02:44]} b6 {[%emt 0:05:25]} 27. cxb6 {[%emt 0:08:02]} Nxb6 {[%emt 0:00:04]} 28. Ne3 {[%emt 0:03:14]} Qc6 {[%emt 0:07:46]} 29. Ng4 {[%emt 0:04:43]} Bg7 {[%emt 0:01:02]} 30. Nf3 {[%emt 0:04:01]} Nd5 {[%emt 0:02:46]} 31. Nfe5 {[%emt 0:01:13]} Qc7 {[%emt 0:00:37]} 32. Nd3 {[%emt 0:00:53]} Qc3 {[%emt 0:01:20]} 33. Nge5 {[%emt 0:01:17]} Re8 {[%emt 0:02:12]} 34. Nc5 {[%emt 0:00:50]} Qxa3 {[%emt 0:01:16]} 35. Ned3 {[%emt 0:00:41]} Nxb4 {[%emt 0:00:40]} 36. Nxb4 {[%emt 0:00:14]} Qxb4 {[%emt 0:00:02]} 37. Nxa6 {[%emt 0:00:06]} Qb6 {[%emt 0:00:31]} 38. Qc4 {[%emt 0:00:35]} Bf8 {[%emt 0:05:05]} 39. Ra1 {[%emt 0:00:35]} Rd8 {[%emt 0:00:30]} 40. Qc7 {[%emt 0:00:00]} Qb2 {[%emt 0:00:00]} 41. Rf1 {[%emt 0:07:57]} Rd2 {[%emt 0:06:46]} 42. Nb8 {[%emt 0:01:07]} Qf6 {[%emt 0:06:28]} 43. Qc8 {[%emt 0:02:47]} Qd8 {[%emt 0:01:07]} 44. Qxd8 {[%emt 0:01:33]} Rxd8 {[%emt 0:02:39]} 45. Nc6 {[%emt 0:01:20]} Rd2 {[%emt 0:00:11]} 46. Rc1 {[%emt 0:00:20]} Bd6 {[%emt 0:01:30]} 47. Na5 {[%emt 0:02:06]} Ra2 {[%emt 0:00:46]} 48. Nb3 {[%emt 0:01:03]} Be5 {[%emt 0:02:23]} 49. Rd1 {[%emt 0:03:10]} Bc7 {[%emt 0:01:58]} 50. Rd2 {[%emt 0:01:00]} Rxd2 {[%emt 0:00:34]} 51. Nxd2 {[%emt 0:00:01]} Kg7 {[%emt 0:00:07]} 52. Kg2 {[%emt 0:00:16]} f5 {[%emt 0:00:03]} 53. f4 {[%emt 0:00:45]} Kf6 {[%emt 0:00:12]} 54. Kf3 {[%emt 0:00:47]} g5 {[%emt 0:00:54]} 55. Nc4 {[%emt 0:00:32]} h5 {[%emt 0:00:14]} 56. h4 {[%emt 0:07:50]} gxh4 {[%emt 0:01:54]} 57. gxh4 {[%emt 0:00:03]} Bd8 {[%emt 0:00:10]} 58. Ne5 {[%emt 0:01:35]} Kg7 {[%emt 0:00:54]} 59. Kg3 {[%emt 0:00:07]} Ba5 {[%emt 0:00:28]} 60. Nf3 {[%emt 0:00:36]} Kf6 {[%emt 0:00:07]} 61. Kf2 {[%emt 0:00:07]} Bc7 {[%emt 0:00:06]} 62. Ke3 {[%emt 0:00:10]} Bb6+ {[%emt 0:00:10]} 63. Ke2 {[%emt 0:00:04]} Ke7 {[%emt 0:00:39]} 64. Ng5 {[%emt 0:02:16]} Kd6 {[%emt 0:00:40]} 65. Kf3 {[%emt 0:00:31]} Ba5 {[%emt 0:00:32]} 66. Kf2 {[%emt 0:00:17]} Kd5 {[%emt 0:00:42]} 67. Nh7 {[%emt 0:03:24]} Bd8 {[%emt 0:01:45]} 68. Kg3 {[%emt 0:00:10]} Be7 {[%emt 0:01:57]} 69. Ng5 {[%emt 0:00:07]} Bb4 {[%emt 0:01:40]} 70. Nh7 {[%emt 0:01:15]} Be7 {[%emt 0:03:41]} 71. Kh3 {[%emt 0:01:07]} e5 {[%emt 0:01:13]} 72. fxe5 {[%emt 0:00:04]} Kxe5 {[%emt 0:00:05]} 73. Kg3 {[%emt 0:00:18]} f4+ {[%emt 0:01:00]} 74. Kf3 {[%emt 0:00:08]} Kf5 {[%emt 0:00:07]} 75. Kg2 {[%emt 0:00:10]} Kg4 {[%emt 0:02:16]} 76. Kf2 {[%emt 0:01:14]} Bxh4+ {[%emt 0:00:14]} 77. Kg2 {[%emt 0:00:03]} Be7 {[%emt 0:00:06]} 0-1

[Event "FIDE WYCC Open U14 2023"]
[Site "Montesilvano"]
[Date "2023.11.22"]
[Round "9.7"]
[White "Uskov, Artem"]
[Black "Rustamov, Rustam"]
[Result "1/2-1/2"]
[ECO "A05"]
[WhiteElo "2380"]
[BlackElo "2229"]
[Annotator "RC"]
[PlyCount "81"]
[EventDate "2023.11.13"]
[EventType "swiss"]
[EventCountry "ITA"]
[SourceTitle "playchess.com"]
[Source "ChessBase"]
[SourceQuality "1"]
[TimeControl "40/5400+30:1800+30"]

1. Nf3 {[%emt 0:00:05]} Nf6 {[%emt 0:00:08]} 2. g3 {[%emt 0:00:06]} d5 {[%emt 0:00:11]} 3. Bg2 {[%emt 0:00:05]} c5 {[%emt 0:00:04]} 4. O-O {[%emt 0:00:40]} e6 {[%emt 0:00:15]} 5. c4 {[%emt 0:03:00]} Nc6 {[%emt 0:00:22]} 6. d4 {[%emt 0:00:26]} cxd4 {[%emt 0:00:44]} 7. cxd5 {[%emt 0:04:35]} exd5 {[%emt 0:02:22]} 8. Nxd4 {[%emt 0:00:12]} Be7 {[%emt 0:00:11]} 9. Nc3 {[%emt 0:01:07]} O-O {[%emt 0:00:21]} 10. Be3 {[%emt 0:11:12]} Be6 {[%emt 0:02:58]} 11. h3 {[%emt 0:03:45]} a6 {[%emt 0:01:07]} 12. Qd2 {[%emt 0:03:41]} Rc8 {[%emt 0:03:44]} 13. Nxc6 {[%emt 0:08:02]} bxc6 {[%emt 0:06:14]} 14. Rfd1 {[%emt 0:00:45]} Qd6 {[%emt 0:07:10]} 15. Rac1 {[%emt 0:08:10]} Qb4 {[%emt 0:03:11]} 16. b3 {[%emt 0:05:29]} Nd7 {[%emt 0:07:33]} 17. Qc2 {[%emt 0:06:48]} Nc5 {[%emt 0:02:46]} 18. Bd4 {[%emt 0:01:03]} Rfd8 {[%emt 0:02:34]} 19. Kh2 {[%emt 0:00:58]} Bf8 {[%emt 0:01:17]} 20. e4 {[%emt 0:04:41]} dxe4 {[%emt 0:07:10]} 21. Bxc5 {[%emt 0:00:50]} Qxc5 {[%emt 0:01:39]} 22. Rxd8 {[%emt 0:00:34]} Rxd8 {[%emt 0:00:02]} 23. Nxe4 {[%emt 0:00:08]} Qf5 {[%emt 0:01:11]} 24. Qe2 {[%emt 0:03:03]} Rd4 {[%emt 0:06:18]} 25. Qe3 {[%emt 0:05:06]} c5 {[%emt 0:01:19]} 26. Kg1 {[%emt 0:00:55]} h5 {[%emt 0:03:06]} 27. h4 {[%emt 0:03:57]} Be7 {[%emt 0:04:54]} 28. Re1 {[%emt 0:00:38]} a5 {[%emt 0:05:37]} 29. Qe2 {[%emt 0:04:49]} g6 {[%emt 0:02:56]} 30. Qb5 {[%emt 0:00:59]} c4 {[%emt 0:01:37]} 31. Qe8+ {[%emt 0:01:52]} Bf8 {[%emt 0:00:30]} 32. bxc4 {[%emt 0:00:29]} Kg7 {[%emt 0:01:59]} 33. Qb8 {[%emt 0:04:12]} Bb4 {[%emt 0:02:22]} 34. Re3 {[%emt 0:00:05]} Bxc4 {[%emt 0:02:20]} 35. a3 {[%emt 0:00:56]} Be7 {[%emt 0:02:50]} 36. Kh2 {[%emt 0:00:53]} Rd3 {[%emt 0:01:41]} 37. Qc7 {[%emt 0:02:02]} Rxe3 {[%emt 0:01:23]} 38. fxe3 {[%emt 0:00:26]} Qe6 {[%emt 0:01:12]} 39. Qxa5 {[%emt 0:00:05]} Bf1 {[%emt 0:02:01]} 40. Qc3+ {[%emt 0:00:00]} Kg8 {[%emt 0:00:00]} 41. Bxf1 1/2-1/2

[Event "FIDE WYCC Open U14 2023"]
[Site "Montesilvano"]
[Date "2023.11.22"]
[Round "9.8"]
[White "Brattgjerd, Isak Vinh"]
[Black "Agasarov, Benik"]
[Result "0-1"]
[ECO "C84"]
[WhiteElo "2235"]
[BlackElo "2360"]
[Annotator "RC"]
[PlyCount "75"]
[EventDate "2023.11.13"]
[EventType "swiss"]
[EventCountry "ITA"]
[SourceTitle "playchess.com"]
[Source "ChessBase"]
[SourceQuality "1"]
[TimeControl "40/5400+30:1800+30"]

1. e4 {[%emt 0:00:02]} e5 {[%emt 0:00:11]} 2. Nf3 {[%emt 0:00:16]} Nc6 {[%emt 0:00:05]} 3. Bb5 {[%emt 0:00:07]} a6 {[%emt 0:00:06]} 4. Ba4 {[%emt 0:00:04]} Nf6 {[%emt 0:00:05]} 5. O-O {[%emt 0:01:04]} Be7 {[%emt 0:00:04]} 6. d3 {[%emt 0:00:13]} b5 {[%emt 0:00:24]} 7. Bb3 {[%emt 0:00:03]} d6 {[%emt 0:00:23]} 8. a4 {[%emt 0:00:11]} Bd7 {[%emt 0:01:21]} 9. Nbd2 {[%emt 0:02:25]} Na5 {[%emt 0:01:12]} 10. Ba2 {[%emt 0:00:07]} bxa4 {[%emt 0:00:56]} 11. c3 {[%emt 0:00:26]} c5 {[%emt 0:02:07]} 12. Re1 {[%emt 0:01:59]} O-O {[%emt 0:01:56]} 13. h3 {[%emt 0:06:06]} Rb8 {[%emt 0:02:18]} 14. Nf1 {[%emt 0:09:46]} Nb3 {[%emt 0:08:29]} 15. Bxb3 {[%emt 0:00:20]} Rxb3 {[%emt 0:00:06]} 16. Ng3 {[%emt 0:05:40]} g6 {[%emt 0:07:32]} 17. Bh6 {[%emt 0:14:59]} Re8 {[%emt 0:00:53]} 18. Qc1 {[%emt 0:00:30]} Bf8 {[%emt 0:04:25]} 19. Bxf8 {[%emt 0:06:39]} Rxf8 {[%emt 0:00:42]} 20. Nd2 {[%emt 0:08:30]} Rb7 {[%emt 0:09:03]} 21. Ndf1 {[%emt 0:10:58]} Ne8 {[%emt 0:02:01]} 22. Re2 {[%emt 0:05:25]} Qh4 {[%emt 0:03:30]} 23. Nd2 Ng7 {[%emt 0:02:39]} 24. Nc4 {[%emt 0:04:41]} Qe7 {[%emt 0:01:00]} 25. Ne3 {[%emt 0:05:09]} f5 {[%emt 0:01:10]} 26. Nd5 {[%emt 0:00:39]} Qh4 {[%emt 0:01:20]} 27. Nf1 {[%emt 0:00:49]} Bc6 {[%emt 0:01:46]} 28. f3 {[%emt 0:06:47]} Bxd5 {[%emt 0:00:44]} 29. exd5 {[%emt 0:00:02]} Nh5 {[%emt 0:07:13]} 30. Rd2 {[%emt 0:07:29]} Nf4 {[%emt 0:01:45]} 31. Qd1 {[%emt 0:00:39]} Rfb8 {[%emt 0:00:57]} 32. Rxa4 {[%emt 0:02:41]} Rxb2 {[%emt 0:00:07]} 33. g3 {[%emt 0:01:02]} Rxd2 {[%emt 0:00:22]} 34. Qxd2 {[%emt 0:00:44]} Nxh3+ {[%emt 0:00:04]} 35. Kh2 {[%emt 0:00:34]} Qxa4 {[%emt 0:00:06]} 36. Kxh3 {[%emt 0:00:07]} Qa1 {[%emt 0:00:09]} 37. Nh2 {[%emt 0:00:33]} f4 {[%emt 0:00:36]} 38. gxf4 0-1

[Event "FIDE WYCC Open U14 2023"]
[Site "Montesilvano"]
[Date "2023.11.22"]
[Round "9.9"]
[White "Dhruva Thota"]
[Black "Goh, Zi Han"]
[Result "1-0"]
[ECO "B96"]
[WhiteElo "2192"]
[BlackElo "2333"]
[Annotator "RC"]
[PlyCount "77"]
[EventDate "2023.11.13"]
[EventType "swiss"]
[EventCountry "ITA"]
[SourceTitle "playchess.com"]
[Source "ChessBase"]
[SourceQuality "1"]
[TimeControl "40/5400+30:1800+30"]

1. e4 {[%emt 0:00:08]} c5 {[%emt 0:01:10]} 2. Nf3 {[%emt 0:00:06]} d6 {[%emt 0:01:35]} 3. d4 {[%emt 0:00:06]} cxd4 {[%emt 0:00:08]} 4. Nxd4 {[%emt 0:00:05]} Nf6 {[%emt 0:00:17]} 5. Nc3 {[%emt 0:00:08]} a6 {[%emt 0:00:24]} 6. Bg5 {[%emt 0:00:10]} e6 {[%emt 0:01:30]} 7. f4 {[%emt 0:00:07]} Qc7 {[%emt 0:00:49]} 8. Bxf6 {[%emt 0:00:49]} gxf6 {[%emt 0:00:09]} 9. Qf3 {[%emt 0:00:07]} b5 {[%emt 0:02:26]} 10. a3 {[%emt 0:08:59]} Bb7 {[%emt 0:01:56]} 11. Be2 {[%emt 0:07:02]} h5 {[%emt 0:02:19]} 12. Qh3 {[%emt 0:11:26]} Nd7 {[%emt 0:06:19]} 13. Bxh5 {[%emt 0:17:36]} O-O-O {[%emt 0:07:31]} 14. O-O-O {[%emt 0:05:40]} Bh6 {[%emt 0:09:39]} 15. Rhf1 {[%emt 0:03:42]} Qc5 {[%emt 0:09:31]} 16. g4 {[%emt 0:02:44]} Nb6 {[%emt 0:11:35]} 17. Kb1 {[%emt 0:03:46]} Qc7 {[%emt 0:01:33]} 18. g5 {[%emt 0:06:54]} Bg7 {[%emt 0:03:50]} 19. g6 {[%emt 0:05:34]} Qc5 {[%emt 0:17:46]} 20. f5 {[%emt 0:07:01]} e5 {[%emt 0:02:38]} 21. Nb3 {[%emt 0:00:42]} Qc7 {[%emt 0:00:06]} 22. Na5 {[%emt 0:03:01]} Rh6 {[%emt 0:02:28]} 23. gxf7 {[%emt 0:02:46]} Qxf7 {[%emt 0:03:13]} 24. Qe3 {[%emt 0:00:44]} Rxh5 {[%emt 0:05:11]} 25. Qxb6 {[%emt 0:00:11]} Qc7 {[%emt 0:00:08]} 26. Qxc7+ {[%emt 0:01:11]} Kxc7 {[%emt 0:00:03]} 27. Rg1 {[%emt 0:00:30]} Rd7 {[%emt 0:01:50]} 28. Nxb7 {[%emt 0:00:48]} Kxb7 {[%emt 0:00:03]} 29. Rg2 {[%emt 0:00:34]} Bh6 {[%emt 0:01:26]} 30. Rd3 {[%emt 0:02:34]} Bg5 {[%emt 0:00:54]} 31. a4 {[%emt 0:00:47]} bxa4 {[%emt 0:04:27]} 32. Nxa4 {[%emt 0:00:10]} Kc6 {[%emt 0:00:13]} 33. Nc3 {[%emt 0:03:40]} Rdh7 {[%emt 0:00:35]} 34. Nd5 {[%emt 0:00:52]} Rxh2 {[%emt 0:00:15]} 35. Rgg3 {[%emt 0:00:46]} Rb7 {[%emt 0:02:49]} 36. Ra3 {[%emt 0:00:44]} Re2 {[%emt 0:00:58]} 37. Rac3+ {[%emt 0:01:01]} Kd7 {[%emt 0:00:06]} 38. Rh3 {[%emt 0:00:04]} Re1+ {[%emt 0:01:07]} 39. Ka2 {[%emt 0:00:01]} 1-0

[Event "FIDE WYCC Open U14 2023"]
[Site "Montesilvano"]
[Date "2023.11.22"]
[Round "9.10"]
[White "Perossa, Nicolas"]
[Black "Myagmarsuren, Evsuld"]
[Result "1-0"]
[ECO "B53"]
[WhiteElo "2330"]
[BlackElo "2150"]
[Annotator "RC"]
[PlyCount "49"]
[EventDate "2023.11.13"]
[EventType "swiss"]
[EventCountry "ITA"]
[SourceTitle "playchess.com"]
[Source "ChessBase"]
[SourceQuality "1"]
[TimeControl "40/5400+30:1800+30"]

1. e4 {[%emt 0:01:53]} c5 {[%emt 0:00:04]} 2. Nf3 {[%emt 0:00:07]} d6 {[%emt 0:00:01]} 3. d4 {[%emt 0:00:48]} cxd4 {[%emt 0:00:02]} 4. Qxd4 {[%emt 0:00:15]} Nc6 {[%emt 0:00:05]} 5. Bb5 {[%emt 0:00:14]} Bd7 {[%emt 0:00:04]} 6. Bxc6 {[%emt 0:00:15]} Bxc6 {[%emt 0:00:02]} 7. Nc3 {[%emt 0:00:14]} Nf6 {[%emt 0:00:01]} 8. Bg5 {[%emt 0:00:26]} e6 {[%emt 0:00:03]} 9. Qd3 {[%emt 0:00:12]} Be7 {[%emt 0:01:14]} 10. O-O-O {[%emt 0:00:16]} O-O {[%emt 0:10:50]} 11. Nd4 {[%emt 0:01:27]} Qa5 {[%emt 0:01:18]} 12. f4 {[%emt 0:02:19]} h6 {[%emt 0:07:04]} 13. h4 {[%emt 0:02:21]} Rfc8 {[%emt 0:02:53]} 14. Kb1 {[%emt 0:02:55]} b5 {[%emt 0:02:49]} 15. e5 {[%emt 0:45:06]} b4 {[%emt 0:18:08]} 16. Nb3 {[%emt 0:04:00]} Qb6 {[%emt 0:02:08]} 17. exf6 {[%emt 0:00:30]} bxc3 {[%emt 0:01:48]} 18. fxe7 {[%emt 0:00:15]} cxb2 {[%emt 0:04:54]} 19. f5 {[%emt 0:18:08]} Bxg2 {[%emt 0:20:45]} 20. Rhg1 {[%emt 0:04:54]} Qc6 {[%emt 0:00:36]} 21. Nd4 {[%emt 0:02:16]} Qd5 {[%emt 0:01:06]} 22. Qd2 {[%emt 0:02:07]} Be4 {[%emt 0:02:07]} 23. Bf6 {[%emt 0:01:13]} g5 {[%emt 0:00:44]} 24. Rxg5+ {[%emt 0:00:17]} hxg5 {[%emt 0:00:34]} 25. Qxg5+ {[%emt 0:00:06]} 1-0

[Event "FIDE WYCC Open U14 2023"]
[Site "Montesilvano"]
[Date "2023.11.22"]
[Round "9.11"]
[White "Lissillour, Baptiste"]
[Black "Daaevik Wadhawan"]
[Result "0-1"]
[ECO "D85"]
[WhiteElo "2298"]
[BlackElo "1810"]
[Annotator "RC"]
[PlyCount "74"]
[EventDate "2023.11.13"]
[EventType "swiss"]
[EventCountry "ITA"]
[SourceTitle "playchess.com"]
[Source "ChessBase"]
[SourceQuality "1"]
[TimeControl "40/5400+30:1800+30"]

1. d4 {[%emt 0:00:02]} Nf6 {[%emt 0:02:58]} 2. c4 {[%emt 0:00:06]} g6 {[%emt 0:00:10]} 3. Nc3 {[%emt 0:02:48]} d5 {[%emt 0:00:05]} 4. cxd5 {[%emt 0:00:26]} Nxd5 {[%emt 0:00:03]} 5. e4 {[%emt 0:00:07]} Nxc3 {[%emt 0:00:09]} 6. bxc3 {[%emt 0:00:05]} Bg7 {[%emt 0:00:03]} 7. Nf3 {[%emt 0:00:31]} c5 {[%emt 0:00:15]} 8. Be3 {[%emt 0:00:08]} Qa5 {[%emt 0:00:18]} 9. Qd2 {[%emt 0:00:07]} O-O {[%emt 0:00:17]} 10. Rb1 {[%emt 0:02:47]} Nd7 {[%emt 0:10:35]} 11. Bd3 {[%emt 0:03:51]} Rd8 {[%emt 0:11:44]} 12. Rb5 {[%emt 0:10:04]} Qc7 {[%emt 0:00:52]} 13. Bf4 {[%emt 0:02:48]} e5 {[%emt 0:03:55]} 14. Bh6 {[%emt 0:05:08]} Bh8 {[%emt 0:07:32]} 15. d5 {[%emt 0:04:51]} a6 {[%emt 0:08:27]} 16. Rb1 {[%emt 0:00:25]} c4 {[%emt 0:00:51]} 17. Bc2 {[%emt 0:02:04]} Nc5 {[%emt 0:00:47]} 18. h4 {[%emt 0:02:02]} Rd6 {[%emt 0:12:16]} 19. h5 {[%emt 0:03:24]} Bg4 {[%emt 0:02:58]} 20. Ng5 {[%emt 0:08:09]} gxh5 {[%emt 0:07:20]} 21. Nh3 {[%emt 0:10:53]} Rg6 {[%emt 0:02:50]} 22. f3 {[%emt 0:01:16]} Bd7 {[%emt 0:00:55]} 23. Be3 {[%emt 0:01:16]} b5 {[%emt 0:03:34]} 24. Kf1 {[%emt 0:07:37]} Bf6 {[%emt 0:02:23]} 25. Qf2 {[%emt 0:09:46]} Rc8 {[%emt 0:03:27]} 26. f4 {[%emt 0:01:31]} Bg4 {[%emt 0:02:58]} 27. Qd2 {[%emt 0:07:31]} Nd3 {[%emt 0:08:22]} 28. f5 {[%emt 0:02:52]} Rg7 {[%emt 0:00:02]} 29. Bxd3 {[%emt 0:02:26]} cxd3 {[%emt 0:00:01]} 30. Qxd3 {[%emt 0:01:41]} Kh8 {[%emt 0:01:24]} 31. Nf2 {[%emt 0:02:18]} Qxc3 {[%emt 0:02:16]} 32. Bd2 {[%emt 0:01:12]} Qxd3+ {[%emt 0:01:57]} 33. Nxd3 {[%emt 0:00:02]} Rc2 {[%emt 0:01:35]} 34. Bb4 {[%emt 0:05:08]} Be2+ {[%emt 0:00:24]} 35. Ke1 {[%emt 0:00:05]} Bxd3 {[%emt 0:00:08]} 36. Rd1 {[%emt 0:00:50]} Re2+ {[%emt 0:01:13]} 37. Kf1 {[%emt 0:00:05]} Bc4 {[%emt 0:00:20]} 0-1